Cogmind - Beta 13 @@@ ROGUE MODE // 2024.04.02 @ 14:42:03 Player: carterz30cal Result: Destroyed by G-47 Trooper with Particle Gun Performance ------------- Evolutions (2) 1000 Regions Visited (3) 600 Robots Destroyed (81) 405 Value Destroyed (2488) 2488 Prototype IDs (0) 0 Alien Tech Used (0) 0 Bonus (230) 230 TOTAL SCORE: 4723 Bonus ------- High Alert Combat Kills 230 Cogmind --------- Core Integrity 0/550 Matter 283/300 Energy 100/100 System Corruption 1% Temperature Cool (18) Movement Core (350) Ox6 Location -8/Materials Parts ------- > --- POWER (1) -------- (None) > --- PROPULSION (3) --- (None) > --- UTILITY (3) ------ Large Storage Unit > --- WEAPON (4) ------- (None) > --- INVENTORY (15) --- Large Storage Unit Sensor Array Matter Filter Kinecellerator Core Shielding Peak State ------------ > --- POWER ------------ Light Angular Momentum Engine > --- PROPULSION ------- Titanium Leg Wheel Wheel > --- UTILITY ---------- Improved Heat Sink Large Storage Unit Kinecellerator > --- WEAPON ----------- Particle Gun Heavy Laser Autogun High-powered Shotgun > --- INVENTORY -------- Light Deuterium Engine Large Storage Unit Sensor Array Matter Filter Core Shielding Light Assault Rifle Light Assault Rifle Grenade Launcher [Rating: 30] Favorites ----------- Power Ion Engine Engine Ion Engine Power Core Light Nuclear Core Propulsion Aluminum Leg Treads Light Treads Leg Aluminum Leg Wheel Wheel Utility Large Storage Unit Device Improved Heat Sink Storage Large Storage Unit Protection Heavy Armor Plating Weapon Assault Rifle Energy Gun Particle Gun Energy Cannon Beam Cannon Ballistic Gun Assault Rifle Launcher Grenade Launcher Build | -11 -10 -10 -8 ------- Run | Yrd Mat Sub Mat Slots Evolved 4 | . . . 4 Power . | . . . . Propulsion 1 | . . . 1 Utility 1 | . . . 1 Weapon 2 | . . . 2 Parts Attached 83 | 8 23 . 52 Power 12 | 1 5 . 6 Engine 11 | 1 5 . 5 Core 1 | . . . 1 Reactor . | . . . . Propulsion 21 | 4 4 . 13 Treads 3 | 3 . . . Leg 9 | 1 4 . 4 Wheel 9 | . . . 9 Hover . | . . . . Flight . | . . . . Utility 14 | 1 4 . 9 Device 7 | . 3 . 4 Storage 3 | 1 1 . 1 Processor . | . . . . Hackware . | . . . . Protection 4 | . . . 4 Artifact . | . . . . Weapon 36 | 2 10 . 24 Energy Gun 9 | 1 3 . 5 Energy Cannon 7 | . 6 . 1 Ballistic Gun 17 | 1 1 . 15 Ballistic Cannon . | . . . . Launcher 3 | . . . 3 Special Weapon . | . . . . Impact Weapon . | . . . . Slashing Weapon . | . . . . Piercing Weapon . | . . . . Special Melee Weapon . | . . . . Unidentified Prototypes . | . . . . Parts Lost 29 | . 2 . 27 Power 3 | . . . 3 Propulsion 10 | . 2 . 8 Utility 5 | . . . 5 Weapon 11 | . . . 11 Highest Loss Streak 7 | . 1 . 7 To Critical Strikes . | . . . . Average Slot Usage (%) 82 | . 97 100 76 Engine 9 | . 13 14 7 Treads 2 | . 9 . . Leg 10 | . 16 28 6 Wheel 4 | . . . 7 Device 8 | . 13 14 6 Storage 10 | . 14 14 9 Protection 3 | . . . 5 Energy Gun 8 | . 8 . 8 Energy Cannon 5 | . 13 28 . Ballistic Gun 18 | . 5 . 24 Naked Turns . | . . . . Heaviest Build 56 | 11 32 32 56 Greatest Support 40 | 40 40 20 36 Greatest Overweight (x) 16 | 1 3 1 16 Average Overweight (x) 2 | . . 1 3 Largest Inventory Capacity 15 | 8 15 15 15 Average Capacity 14 | 5 14 15 15 Most Carried 15 | 5 12 12 15 Average Carried 9 | 4 8 11 9 Final Capacity 15 | 8 15 15 15 Final Carried 12 | 5 10 12 5 Class Distribution -------------------- 35% | Mutant 30% | Tank 21% | Scavenger-Gunner 10% | Scavenger-Tank Dominant Class ---------------- Mutant | -10/Materials Mutant | -10/Subcaves Tank | -8/Materials Resources | -11 -10 -10 -8 ----------- Run | Yrd Mat Sub Mat Matter Collected 2401 | 307 328 . 1766 Remotely . | . . . . Salvage Created 3065 | 71 786 45 2163 Parts 185 | 2 42 1 140 Haulers Intercepted 5 | . 1 . 4 Recyclers Shooed 6 | . 3 . 3 Parts Field Recycled . | . . . . Retrieved Matter . | . . . . Parts Self-Destructed 4 | . . 4 . Prevented . | . . . . Kills | -11 -10 -10 -8 ------- Run | Yrd Mat Sub Mat Combat Hostiles Destroyed 55 | . 14 1 40 Guns 45 | . 10 . 35 Cannons 5 | . 3 1 1 AOE 4 | . . . 4 Classes Destroyed 13 | 1 4 . 8 Worker 2 | . . . 2 Builder 6 | . 1 . 5 Tunneler 1 | . 1 . . Hauler 5 | . 1 . 4 Recycler 6 | 1 2 . 3 Operator 2 | . . . 2 Watcher 4 | . . . 4 Swarmer 8 | . . . 8 Grunt 35 | . 14 1 20 Brawler 1 | . . . 1 Sentry 7 | . . . 7 Specialist 2 | . . . 2 Hunter 2 | . . . 2 Best Kill Streak 6 | 1 3 1 6 Combat Bots Only 5 | . 3 1 5 Max Kills in Single Turn 2 | 1 1 1 2 Gunslinging . | . . . . Exploded 1 | . . . 1 Melee . | . . . . Uniques/NPCs Destroyed . | . . . . Combat | -11 -10 -10 -8 -------- Run | Yrd Mat Sub Mat Hostile Shots Fired 357 | . 97 15 245 Missed 93 | . 27 7 59 Damage Taken 4369 | . 881 150 3338 Core 742 | . 163 17 562 Absorbed by Shields . | . . . . Regen/Repaired (Parts) 155 | . 40 . 115 Core Remaining (%) 64 | 100 . 28 . Volleys Fired 225 | 9 83 4 129 Largest 4 | 2 2 2 4 Hottest 264 | 60 125 120 264 Shots Fired 658 | 18 163 8 469 Gun 575 | 18 114 . 443 Cannon 70 | . 49 8 13 Launcher 13 | . . . 13 Special . | . . . . Kinetic 400 | 9 46 . 345 Thermal 240 | 9 112 8 111 Explosive 13 | . . . 13 Electromagnetic 5 | . 5 . . Robot Hit Streak 14 | 3 12 4 14 Robot Miss Streak 7 | 3 6 1 7 Penetration Max . | . . . . Secondary Targets 3 | . . . 3 Max Gunslinging Chain 1 | . . . 1 Shots Hit Robots 339 | 9 85 5 240 Core Hits 161 | 2 31 2 126 Critical Kills 2 | . . . 2 Critical Parts Destroyed 2 | . . . 2 Critical Strikes 7 | . 1 . 6 Burn 3 | . 1 . 2 Destroy 4 | . . . 4 Melee Attacks . | . . . . Impact . | . . . . Slashing . | . . . . Piercing . | . . . . Sneak Attacks . | . . . . Combat Hostiles . | . . . . Follow-up Attacks . | . . . . Damage Inflicted 5856 | 109 1344 88 4315 Guns 4417 | 109 856 . 3452 Cannons 678 | . 488 88 102 Explosions 752 | . . . 752 Melee . | . . . . Ramming 9 | . . . 9 Kinetic 2810 | 88 283 . 2439 Thermal 2242 | 21 1018 88 1115 Explosive 752 | . . . 752 Electromagnetic 43 | . 43 . . Impact . | . . . . Slashing . | . . . . Piercing . | . . . . Highest Corruption 1 | . . . 1 Average Corruption 1 | . . . 1 Corruption Purged . | . . . . Corruption Blocked . | . . . . Effects 25 | . . . 25 Message Errors 4 | . . . 4 Matter Fused 11 | . . . 11 Heat Flow Errors 5 | . . . 5 Energy Discharges 3 | . . . 3 Alerts 1 | . . . 1 Weapon Failures 1 | . . . 1 Overload Shots . | . . . . Overflow Damage 34 | . . . 34 Projectiles . | . . . . Explosions 34 | . . . 34 Melee . | . . . . Knockbacks . | . . . . Impact . | . . . . Kinetic . | . . . . Secondary . | . . . . Self-Inflicted Damage 322 | . . . 322 Shots 6 | . . . 6 Rammed 2 | . . . 2 Targets Rammed 2 | . . . 2 Kicked . | . . . . Crushed . | . . . . Highest Temperature 678 | . 422 . 678 Average Temperature 145 | . 119 . 159 Received Heat Transfer 1788 | . 489 66 1233 Effects 43 | . 8 . 35 Shutdowns 7 | . 1 . 6 Energy Bleed 8 | . 4 . 4 Interference 11 | . 1 . 10 Matter Decay 2 | . . . 2 Short Circuit 4 | . 1 . 3 Damage (minor) 4 | . 1 . 3 Damage (major) 7 | . . . 7 Siege Activations . | . . . . Robots Corrupted . | . . . . Combat Hostiles . | . . . . Parts Fried . | . . . . Impact Corruptions . | . . . . Robots Melted 1 | . 1 . . Combat Hostiles 1 | . 1 . . Parts Melted 5 | . 1 . 4 Heat Transferred 5125 | 50 2374 185 2516 Parts Sabotaged . | . . . . Parts Stolen . | . . . . Parts Stripped . | . . . . Power Chain Reactions . | . . . . Alert | -11 -10 -10 -8 ------- Run | Yrd Mat Sub Mat Peak Influence 801 | 5 208 . 801 Initial 15 | . 3 . 15 Average 271 | 1 81 . 358 Maximum Alert Level 3 | . 1 . 3 Low Security (%) 50 | 100 88 . 32 Level 1 14 | . 11 . 15 Level 2 29 | . . . 42 Level 3 5 | . . . 8 Level 4 . | . . . . Level 5 . | . . . . High Security . | . . . . Max Security . | . . . . Squads Dispatched 13 | . 3 . 10 Investigation 3 | . . . 3 Extermination . | . . . . Reinforcement 9 | . 3 . 6 Assault 1 | . . . 1 Garrison . | . . . . Intercept . | . . . . Searches Triggered . | . . . . Construction Impeded 1 | . . . 1 Haulers Reinforced . | . . . . Active Scanning Responses . | . . . . Cargo Convoy Interrupts . | . . . . Stealth | -11 -10 -10 -8 --------- Run | Yrd Mat Sub Mat Distress Signals 3 | . . . 3 Communications Jammed . | . . . . Distress Signals . | . . . . Times Spotted 88 | . 22 4 62 Peak Tracking Total 5 | . 3 2 5 Tactical Retreats 12 | . 2 . 10 Traps | -11 -10 -10 -8 ------- Run | Yrd Mat Sub Mat Traps Triggered 3 | . 1 . 2 Indirectly . | . . . . Trap Hack Attempts . | . . . . Triggered . | . . . . Disarmed . | . . . . Reprogrammed . | . . . . Reused . | . . . . Traps Extracted . | . . . . Installed . | . . . . Triggered . | . . . . Machines | -11 -10 -10 -8 ---------- Run | Yrd Mat Sub Mat Machines Disabled 10 | . 1 . 9 Max in Single Turn 4 | . 1 . 4 Garrison Access 1 | . . . 1 Machines Repaired . | . . . . Machines Dismantled . | . . . . Machines Sabotaged . | . . . . Overloaded Fab Kills . | . . . . Hacking | -11 -10 -10 -8 --------- Run | Yrd Mat Sub Mat Machines Accessed 11 | . 5 . 6 Terminals 5 | . 3 . 2 Fabricators . | . . . . Repair Stations 3 | . 1 . 2 Recycling Units 2 | . 1 . 1 Scanalyzers . | . . . . Garrison Access 1 | . . . 1 Total Hacks 31 | . 13 . 18 Successful 21 | . 9 . 12 Failed 10 | . 4 . 6 Catastrophic 1 | . . . 1 Database Lockouts . | . . . . Manual 8 | . 5 . 3 Terminals 17 | . 9 . 8 Fabricators . | . . . . Repair Stations 9 | . 2 . 7 Recycling Units 4 | . 2 . 2 Scanalyzers . | . . . . Garrison Access 1 | . . . 1 Terminal Hacks 6 | . 3 . 3 Record 2 | . . . 2 Alert Level 1 | . 1 . . Maintenance Status 1 | . 1 . . Transport Status 1 | . 1 . . Reinforcement Status 1 | . . . 1 Fabricator Hacks . | . . . . Repair Station Hacks 6 | . 2 . 4 Scan Component 3 | . 1 . 2 Repair 3 | . 1 . 2 Recycling Unit Hacks 4 | . 2 . 2 Report Inventory 1 | . . . 1 Retrieve Matter 2 | . 1 . 1 Retrieve Components 1 | . 1 . . Scanalyzer . | . . . . Garrison Access Hacks 1 | . . . 1 Seal Access 1 | . . . 1 Unauthorized Hacks 4 | . 2 . 2 Terminals 4 | . 2 . 2 Botnet 4 | . 2 . 2 Fabricators . | . . . . Repair Stations . | . . . . Recycling Units . | . . . . Scanalyzers . | . . . . Garrison Access . | . . . . Data Cores Recovered 1 | . . . 1 Used 1 | . . . 1 Hacking Detections 7 | . 3 . 4 Full Trace Events 2 | . . . 2 Feedback Events 1 | . . . 1 Corruption 1 | . . . 1 Feedback Blocked . | . . . . Robot Schematics Acquired . | . . . . Robots Built . | . . . . Authchips . | . . . . Time . | . . . . Total Robot Build Rating . | . . . . Part Schematics Acquired . | . . . . Parts Built . | . . . . Authchips . | . . . . Time . | . . . . Total Part Build Rating . | . . . . Parts Repaired 3 | . 1 . 2 Time 78 | . 26 . 52 Parts Recycled . | . . . . Recycled Matter . | . . . . Retrieved Matter 238 | . 238 . . Retrieved Components 9 | . 9 . . Parts Scanalyzed . | . . . . Part Schematics Acquired . | . . . . Parts Damaged . | . . . . Bothacking | -11 -10 -10 -8 ------------ Run | Yrd Mat Sub Mat Used RIF Installer . | . . . . Robots Hacked . | . . . . Non-combat . | . . . . Combat . | . . . . Robot Hacks Applied . | . . . . Relay Couplers Released 2 | . . . 2 Machine Destruction 2 | . . . 2 Fabnet Peak Effective % . | . . . . Robots Rewired . | . . . . Allies Hacked . | . . . . Hacks Repelled . | . . . . Allies | -11 -10 -10 -8 -------- Run | Yrd Mat Sub Mat Total Allies . | . . . . Largest Group . | . . . . Highest-Rated Group . | . . . . Highest-Rated Ally . | . . . . Total Orders . | . . . . Ally Attacks . | . . . . Total Damage . | . . . . Kills . | . . . . Allies Corrupted . | . . . . Allies Melted . | . . . . Intel | -11 -10 -10 -8 ------- Run | Yrd Mat Sub Mat Robot Analysis Total . | . . . . Derelict Logs Recovered . | . . . . Drone Launches . | . . . . Drone Recoveries . | . . . . Exploration | -11 -10 -10 -8 ------------- Run | Yrd Mat Sub Mat Turns Passed 4982 | 95 1406 107 3374 Spaces Moved 2008 | 40 572 50 1346 Core 124 | 14 . . 110 Treads 231 | 25 206 . . Legs 732 | 1 366 50 315 Wheels 921 | . . . 921 Hover . | . . . . Flight . | . . . . Fastest Speed 50 | 50 160 190 101 Average Speed 200 | 125 189 190 207 Slowest Speed 850 | 160 330 190 850 Overloaded Moves . | . . . . Propulsion Burnouts . | . . . . Robots Hopped . | . . . . Cave-ins Triggered . | . . . . Exploration Rate (%) 36 | 4 71 4 68 Regions Visited 3 Branch Regions 1 Pre-discovered Areas . | . . . . Known Exits Taken . | . . . . Unknown Exits Taken 3 | 1 1 1 . Scrap Searched . | . . . . Spaces Dug . | . . . . Terrain Destroyed 142 | . . . 142 Melee . | . . . . Projectile 3 | . . . 3 AOE 139 | . . . 139 Terrain Rammed . | . . . . Walls Destroyed . | . . . . Machines Disabled . | . . . . Actions | -11 -10 -10 -8 --------- Run | Yrd Mat Sub Mat Total 2501 | 66 727 54 1654 Wait 76 | . 15 . 61 Move 2005 | 39 571 49 1346 Hop . | . . . . Pick Up 70 | 8 22 1 39 Fast Attach 4 | 4 . . . Attach 41 | 4 4 . 33 Detach 4 | 1 . . 3 Swap 38 | . 19 . 19 Drop 36 | 1 13 . 22 Fire 225 | 9 83 4 129 Melee . | . . . . Ram 2 | . . . 2 Kick . | . . . . Crush . | . . . . Escape Stasis . | . . . . Rewire . | . . . . Trap . | . . . . Miscellaneous . | . . . . Route ------- -11/Scrapyard -10/Materials (discovered 5 exits: [*Mat x2] / [*Min x2] / [*Sub]) -10/Subcaves -8/Materials History --------- Turn | Location | Event 18 | -11/Scrapyard | Discovered new exit (range 15) 96 | -11/Scrapyard | Entered Materials 128 | -10/Materials | Discovered new exit (range 3) 144 | -10/Materials | Discovered new exit (range 9) 315 | -10/Materials | Build established: Mutant 329 | -10/Materials | Discovered new exit (range 14) 651 | -10/Materials | Core integrity fell below 50% 823 | -10/Materials | Discovered new exit (range 16) 1353 | -10/Materials | Repaired Ion Engine 1386 | -10/Materials | Discovered new exit (range 15) 1502 | -10/Materials | Entered Subcaves 1515 | -10/Subcaves | Discovered new exit (range 9) 1609 | -10/Subcaves | Entered Materials 1609 | -8/Materials | Evolved 4 slots: Propulsion x1, Utility x1, Weapon x2 1685 | -8/Materials | Repaired Ion Engine 1879 | -8/Materials | Repaired Aluminum Leg 2215 | -8/Materials | Build established: Scavenger-Tank 2782 | -8/Materials | Build established: Tank 3609 | -8/Materials | First assault squad dispatched 3692 | -8/Materials | Lost 5 parts (1p1n1u2w) 4048 | -8/Materials | Build established: Scavenger-Gunner 4605 | -8/Materials | Core integrity fell below 50% 4797 | -8/Materials | Lost 7 parts (1p2n1u3w) 4827 | -8/Materials | Core integrity fell below 20% 4857 | -8/Materials | Lost 6 parts (1p2n1u2w) 4983 | -8/Materials | Destroyed by G-47 Trooper with Particle Gun Last Messages --------------- 04793_ R-06 Scavenger collects Imp. Heat Sink. 04793_ K-01 Serf collects debris. 04797_ System corrupted: Matter fused (-10). 04812_ Acquired 2 matter. 04812_ Penetrated by Slug. 04816_ Lgt. Deuterium Engine destroyed. 04820_ Penetrated by Slug. 04820_ Com. Wheel destroyed. 04822_ Grenade Launcher destroyed. 04822_ Wheel destroyed. 04822_ Knocked back. 04826_ Penetrated by Slug. 04826_ Hvy. Laser destroyed. 04826_ Imp. Heat Sink destroyed. 04826_ Knocked back. 04828_ Acquired 8 matter. 04831_ U-05 Engineer builds a Wall. 04900_ K-01 Serf cleans the Nuclear Reactor. 04977_ Lgt. Assault Rifle destroyed. Map ----- +----------------------------------------------------+ | ??# #???## """ ######## #??????????????????????? | | ??# #????# """ #??????# #????? ??????????????? | | ??# #????+ #??????# #????# ??????????????? | | ??# #????# ?????? +????# ??????????????? | | ??# #????? #####??????###????# ??????????????? | | ??# #????? ??????????????????# ??????????????? | | ??# #????? ???????????????????# ??????????????? | | ### ###??# ???????????????????# ??????????????? | | # ! #????????????????????????# #?????????????? | | # #??????????????????????"?+ +?????????????? | | #?????????????????????? ?# "?????????????? | | # = #??????????????????????? # #?????????????# | | # [*! #??????????????????????? # #?????????????# | | ### ###????????????????????????# ############### | | ??# #??????????????????????????# * # % % %## | | ??# #??????????????????????????#% %# "" % % += | | ###/##?????????????????????????# + """"""""" ## | | * #????????????????????????## # """"" " ## | | " ##?????????????############ % # ## | | [ T #?????????????# ## ############### | | " ##?????????????# # ############## | | *[ #??????#???????# # | | [ #????? #???????# """ """ m | | ######????? #???????# """ """ # | | ########### #???????# """ """ # ### ! # | | + #???????# g@ #######?# """ # | | """ # #???????# g #???????# """ # | | """ # #######?###+#######???????# """ # | | / """ + #?????????????# ? | | ###### #?????????????# ? | | """ #?????? ? ??????????????# """ ? | | """ #????? ? ????????????? """ # | | """ #????? ?? ????????????? """ | | #???? ??????????????????? | | #########???? #???????????????????? | | ############# #???????????????????? ###### | | = [ #?????????????????????########?????# | | *[ #??????????????????????????????????# | | #??????????????????????????????????# | | #??????????????????????????????????# | | ########## ####??????????????????????????????????# | | # # #####?????????????????????????????????# | | #? """ + !!#?????????????????????????????????# | | # """ # !#?????????????????????????????????# | | # ""???# **#?????????????????????????????????# | | + ??????# *#?????????????????????????????????# | | #????????# !!#?????????????????????????????????# | | #????????# !#?????????????????????????????????# | | #????????# #####?????????????????????????????????# | | ?????????# #?????????????????????????????????????# | +----------------------------------------------------+ Best States ------------- Heat Dissipation 59 Energy Generation 18 Energy Capacity 290 Matter Stores 300 Matter Capacity 300 Sight Range 16 Terrain Scan Density 10 Armor Coverage 800 Evasion (%) 50 Recoil Reduction 2 Kinecelleration 30 Item Schematics ----------------- None Robot Schematics ------------------ None Fabricated ------------ Nothing Alien Tech Used ----------------- None Achievements -------------- Dynamic Key Hey, That's Mine! It's Just You Significant Disruption True Hacker Challenges ------------ None Game ------ Seed HeartGatlingOptics Manual? 0 Play Time 00:47:50 Cumulative 2.9 hours Start 2024.04.01 @ 17:41:49 End 2024.04.02 @ 14:42:03 Sessions 3 Manual Loads 0 Difficulty Rogue Special Mode None Game No. 5 Rogue 5 Adventurer 0 Explorer 0 Win Type - Total 0 Types 0/0/0/0/0/0/0/0/0 Lore% 0 Gallery% 6 Achievement% 7 Wizard Run 0 Options --------- Layout 1 ASCII 0 Keyboard 0 Movement Arrows Keybinds 0 Fullscreen 1 Font 24/Smallcaps Map View 50x35 Zoom Use 0% Tactical HUD 1 Map Filters NONE Filters NONE Steam 1 RUN: 3b3e147e-2506-4b36-bf69-1d4b2a015e40